Cogmind - Beta 14 @@@ ROGUE MODE // 2024.08.06 @ 11:44:08

Player: APerTAS

Result: Destroyed by G-34 Mercenary with Small Laser

 Performance 
-------------
Evolutions (0)             0
Regions Visited (1)        200
Robots Destroyed (0)       0
Value Destroyed (120)      120
Prototype IDs (0)          0
Alien Tech Used (0)        0
Bonus (0)                  0
              TOTAL SCORE: 320

 Bonus
-------
None

 Cogmind 
---------
Core Integrity             0/250
Matter                     109/300
Energy                     99/100
System Corruption          0%
Temperature                Cool (6)
Movement                   Core (50)
Location                   -10/Materials

 Parts 
-------
>   --- POWER (1) --------
        (None)
>   --- PROPULSION (2) ---
        (None)
>   --- UTILITY (2) ------
        (None)
>   --- WEAPON (2) -------
        (None)
>   --- INVENTORY (5) ----
        (None)

 Peak State 
------------
None

 Favorites 
-----------
Power                      None
Propulsion                 None
Utility                    None
Weapon                     None

 Build                          | -11 -10 
-------                    Run  | Yrd Mat 
Slots Evolved              .    | .   .   
  Power                    .    | .   .   
  Propulsion               .    | .   .   
  Utility                  .    | .   .   
  Weapon                   .    | .   .   
Parts Attached             .    | .   .   
  Power                    .    | .   .   
    Engine                 .    | .   .   
    Core                   .    | .   .   
    Reactor                .    | .   .   
  Propulsion               .    | .   .   
    Treads                 .    | .   .   
    Leg                    .    | .   .   
    Wheel                  .    | .   .   
    Hover                  .    | .   .   
    Flight                 .    | .   .   
  Utility                  .    | .   .   
    Device                 .    | .   .   
    Storage                .    | .   .   
    Processor              .    | .   .   
    Hackware               .    | .   .   
    Protection             .    | .   .   
    Artifact               .    | .   .   
  Weapon                   .    | .   .   
    Energy Gun             .    | .   .   
    Energy Cannon          .    | .   .   
    Ballistic Gun          .    | .   .   
    Ballistic Cannon       .    | .   .   
    Launcher               .    | .   .   
    Special Weapon         .    | .   .   
    Impact Weapon          .    | .   .   
    Slashing Weapon        .    | .   .   
    Piercing Weapon        .    | .   .   
    Special Melee Weapon   .    | .   .   
  Unidentified Prototypes  .    | .   .   
Parts Lost                 .    | .   .   
  Power                    .    | .   .   
  Propulsion               .    | .   .   
  Utility                  .    | .   .   
  Weapon                   .    | .   .   
  Highest Loss Streak      .    | .   .   
  To Critical Strikes      .    | .   .   
Average Slot Usage (%)     .    | .   .   
Peak Build Rating          .    | .   .   
  Average Rating           .    | .   .   
  On Entrance              .    | .   .   
Naked Turns                48   | .   48  
Heaviest Build             .    | .   .   
  Greatest Support         3    | 3   3   
  Greatest Overweight (x)  .    | .   .   
  Average Overweight (x)   .    | .   .   
Largest Inventory Capacity 5    | 5   5   
  Average Capacity         5    | 5   5   
  Most Carried             .    | .   .   
  Average Carried          .    | .   .   
  Final Capacity           5    | 5   5   
  Final Carried            .    | .   .   

 Class Distribution 
--------------------
 100% | Mutant

 Dominant Class 
----------------
 Mutant | -10/Materials

 Resources                      | -11 -10 
-----------                Run  | Yrd Mat 
Matter Collected           .    | .   .   
  Remotely                 .    | .   .   
Salvage Created            .    | .   .   
  Parts                    .    | .   .   
Haulers Intercepted        .    | .   .   
Recyclers Shooed           .    | .   .   
Parts Field Recycled       .    | .   .   
  Retrieved Matter         .    | .   .   
Parts Self-Destructed      .    | .   .   
  Prevented                .    | .   .   

 Kills                          | -11 -10 
-------                    Run  | Yrd Mat 
Combat Hostiles Destroyed  .    | .   .   
Classes Destroyed          .    | .   .   
Best Kill Streak           .    | .   .   
  Combat Bots Only         .    | .   .   
Max Kills in Single Turn   .    | .   .   
  Gunslinging              .    | .   .   
  Exploded                 .    | .   .   
  Melee                    .    | .   .   
Uniques/NPCs Destroyed     .    | .   .   

 Combat                         | -11 -10 
--------                   Run  | Yrd Mat 
Hostile Shots Fired        52   | .   52  
  Missed                   28   | .   28  
Damage Taken               250  | .   250 
  Core                     250  | .   250 
  Absorbed by Shields      .    | .   .   
Core Remaining (%)         100  | 100 .   
Volleys Fired              .    | .   .   
  Largest                  .    | .   .   
  Hottest                  .    | .   .   
Shots Fired                .    | .   .   
  Gun                      .    | .   .   
  Cannon                   .    | .   .   
  Launcher                 .    | .   .   
  Special                  .    | .   .   
  Kinetic                  .    | .   .   
  Thermal                  .    | .   .   
  Explosive                .    | .   .   
  Electromagnetic          .    | .   .   
  Robot Hit Streak         .    | .   .   
  Robot Miss Streak        .    | .   .   
  Penetration Max          .    | .   .   
  Secondary Targets        .    | .   .   
Shots Hit Robots           .    | .   .   
  Core Hits                1    | .   1   
  Critical Kills           .    | .   .   
  Critical Parts Destroyed .    | .   .   
  Critical Strikes         .    | .   .   
Melee Attacks              .    | .   .   
  Impact                   .    | .   .   
  Slashing                 .    | .   .   
  Piercing                 .    | .   .   
  Sneak Attacks            .    | .   .   
    Combat Hostiles        .    | .   .   
  Follow-up Attacks        .    | .   .   
Damage Inflicted           4    | .   4   
  Guns                     .    | .   .   
  Cannons                  .    | .   .   
  Explosions               .    | .   .   
  Melee                    .    | .   .   
  Ramming                  4    | .   4   
  Kinetic                  .    | .   .   
  Thermal                  .    | .   .   
  Explosive                .    | .   .   
  Electromagnetic          .    | .   .   
  Impact                   .    | .   .   
  Slashing                 .    | .   .   
  Piercing                 .    | .   .   
Highest Corruption         .    | .   .   
  Average Corruption       .    | .   .   
  Corruption Purged        .    | .   .   
  Corruption Blocked       .    | .   .   
Overload Shots             .    | .   .   
Overflow Damage            .    | .   .   
  Projectiles              .    | .   .   
  Explosions               .    | .   .   
  Melee                    .    | .   .   
Knockbacks                 .    | .   .   
  Impact                   .    | .   .   
  Kinetic                  .    | .   .   
  Secondary                .    | .   .   
Self-Inflicted Damage      1    | .   1   
  Shots                    .    | .   .   
  Rammed                   2    | .   2   
Targets Rammed             2    | .   2   
  Kicked                   .    | .   .   
  Crushed                  .    | .   .   
Highest Temperature        .    | .   .   
  Average Temperature      .    | .   .   
  Received Heat Transfer   75   | .   75  
Siege Activations          .    | .   .   
Robots Corrupted           .    | .   .   
  Combat Hostiles          .    | .   .   
  Parts Fried              .    | .   .   
  Impact Corruptions       .    | .   .   
Robots Melted              .    | .   .   
  Combat Hostiles          .    | .   .   
  Parts Melted             .    | .   .   
  Heat Transferred         .    | .   .   
Parts Sabotaged            .    | .   .   
Parts Stolen               .    | .   .   
Parts Stripped             .    | .   .   
Power Chain Reactions      .    | .   .   

 Alert                          | -11 -10 
-------                    Run  | Yrd Mat 
Peak Influence             175  | .   175 
  Initial                  .    | .   .   
  Average                  57   | .   68  
Maximum Alert Level        .    | .   .   
  Low Security (%)         100  | 100 100 
  Level 1                  .    | .   .   
  Level 2                  .    | .   .   
  Level 3                  .    | .   .   
  Level 4                  .    | .   .   
  Level 5                  .    | .   .   
  High Security            .    | .   .   
  Max Security             .    | .   .   
Squads Dispatched          4    | .   4   
  Investigation            3    | .   3   
  Extermination            .    | .   .   
  Reinforcement            1    | .   1   
  Assault                  .    | .   .   
  Garrison                 .    | .   .   
  Intercept                .    | .   .   
Searches Triggered         .    | .   .   
Construction Impeded       .    | .   .   
Haulers Reinforced         .    | .   .   
Active Scanning Responses  .    | .   .   
Cargo Convoy Interrupts    .    | .   .   

 Stealth                        | -11 -10 
---------                  Run  | Yrd Mat 
Distress Signals           1    | .   1   
Communications Jammed      .    | .   .   
  Distress Signals         .    | .   .   
Times Spotted              20   | .   20  
  Peak Tracking Total      18   | .   18  
  Tactical Retreats        .    | .   .   

 Traps                          | -11 -10 
-------                    Run  | Yrd Mat 
Traps Triggered            .    | .   .   
  Indirectly               .    | .   .   
Trap Hack Attempts         .    | .   .   
  Triggered                .    | .   .   
  Disarmed                 .    | .   .   
  Reprogrammed             .    | .   .   
  Reused                   .    | .   .   
Traps Extracted            .    | .   .   
  Installed                .    | .   .   
  Triggered                .    | .   .   

 Machines                       | -11 -10 
----------                 Run  | Yrd Mat 
Machines Disabled          .    | .   .   
  Max in Single Turn       .    | .   .   
Machines Repaired          .    | .   .   
Machines Dismantled        .    | .   .   
Machines Sabotaged         2    | .   2   
Overloaded Fab Kills       .    | .   .   

 Hacking                        | -11 -10 
---------                  Run  | Yrd Mat 
Machines Accessed          3    | .   3   
  Terminals                3    | .   3   
  Fabricators              .    | .   .   
  Repair Stations          .    | .   .   
  Recycling Units          .    | .   .   
  Scanalyzers              .    | .   .   
  Garrison Access          .    | .   .   
Total Hacks                3    | .   3   
  Successful               3    | .   3   
  Failed                   .    | .   .   
    Catastrophic           .    | .   .   
  Database Lockouts        .    | .   .   
  Manual                   3    | .   3   
  Terminals                3    | .   3   
  Fabricators              .    | .   .   
  Repair Stations          .    | .   .   
  Recycling Units          .    | .   .   
  Scanalyzers              .    | .   .   
  Garrison Access          .    | .   .   
Terminal Hacks             .    | .   .   
Fabricator Hacks           .    | .   .   
Repair Station Hacks       .    | .   .   
Recycling Unit Hacks       .    | .   .   
Scanalyzer                 .    | .   .   
Garrison Access Hacks      .    | .   .   
Unauthorized Hacks         3    | .   3   
  Terminals                3    | .   3   
    Sabotage               3    | .   3   
  Fabricators              .    | .   .   
  Repair Stations          .    | .   .   
  Recycling Units          .    | .   .   
  Scanalyzers              .    | .   .   
  Garrison Access          .    | .   .   
Data Cores Recovered       .    | .   .   
  Used                     .    | .   .   
Hacking Detections         .    | .   .   
  Full Trace Events        .    | .   .   
  Feedback Events          .    | .   .   
  Feedback Blocked         .    | .   .   
Robot Schematics Acquired  .    | .   .   
  Robots Built             .    | .   .   
    Authchips              .    | .   .   
    Time                   .    | .   .   
  Total Robot Build Rating .    | .   .   
Part Schematics Acquired   .    | .   .   
  Parts Built              .    | .   .   
    Authchips              .    | .   .   
    Time                   .    | .   .   
  Total Part Build Rating  .    | .   .   
Parts Repaired             .    | .   .   
  Time                     .    | .   .   
Parts Recycled             .    | .   .   
  Recycled Matter          .    | .   .   
  Retrieved Matter         .    | .   .   
  Retrieved Components     .    | .   .   
Parts Scanalyzed           .    | .   .   
  Part Schematics Acquired .    | .   .   
  Parts Damaged            .    | .   .   

 Bothacking                     | -11 -10 
------------               Run  | Yrd Mat 
Used RIF Installer         .    | .   .   
Robots Hacked              .    | .   .   
  Non-combat               .    | .   .   
  Combat                   .    | .   .   
Robot Hacks Applied        .    | .   .   
Relay Couplers Released    .    | .   .   
Fabnet Peak Effective %    .    | .   .   
Robots Rewired             .    | .   .   
Allies Hacked              .    | .   .   
Hacks Repelled             .    | .   .   

 Allies                         | -11 -10 
--------                   Run  | Yrd Mat 
Total Allies               .    | .   .   
  Largest Group            .    | .   .   
  Highest-Rated Group      .    | .   .   
  Highest-Rated Ally       .    | .   .   
Total Orders               .    | .   .   
Ally Attacks               .    | .   .   
  Total Damage             .    | .   .   
  Kills                    .    | .   .   
Allies Corrupted           .    | .   .   
Allies Melted              .    | .   .   

 Intel                          | -11 -10 
-------                    Run  | Yrd Mat 
Robot Analysis Total       .    | .   .   
Derelict Logs Recovered    .    | .   .   
Drone Launches             .    | .   .   
  Drone Recoveries         .    | .   .   

 Exploration                    | -11 -10 
-------------              Run  | Yrd Mat 
Turns Passed               57   | 9   48  
Spaces Moved               109  | 18  91  
  Core                     109  | 18  91  
  Treads                   .    | .   .   
  Legs                     .    | .   .   
  Wheels                   .    | .   .   
  Hover                    .    | .   .   
  Flight                   .    | .   .   
  Fastest Speed            50   | 50  50  
  Average Speed            50   | 50  50  
  Slowest Speed            50   | 50  50  
  Overloaded Moves         .    | .   .   
  Propulsion Burnouts      .    | .   .   
  Robots Hopped            .    | .   .   
  Cave-ins Triggered       .    | .   .   
Exploration Rate (%)       17   | 4   30  
  Regions Visited          1
    Branch Regions         .
  Pre-discovered Areas     .    | .   .   
  Known Exits Taken        .    | .   .   
  Unknown Exits Taken      1    | 1   .   
Scrap Searched             .    | .   .   
Spaces Dug                 .    | .   .   
Terrain Destroyed          .    | .   .   
  Melee                    .    | .   .   
  Projectile               .    | .   .   
  AOE                      .    | .   .   
Terrain Rammed             .    | .   .   
  Walls Destroyed          .    | .   .   
  Machines Disabled        .    | .   .   

 Actions                        | -11 -10 
---------                  Run  | Yrd Mat 
Total                      110  | 17  93  
  Wait                     .    | .   .   
  Move                     108  | 17  91  
  Hop                      .    | .   .   
  Pick Up                  .    | .   .   
  Fast Attach              .    | .   .   
  Attach                   .    | .   .   
  Detach                   .    | .   .   
  Swap                     .    | .   .   
  Drop                     .    | .   .   
  Fire                     .    | .   .   
  Melee                    .    | .   .   
  Ram                      2    | .   2   
  Kick                     .    | .   .   
  Crush                    .    | .   .   
  Escape Stasis            .    | .   .   
  Rewire                   .    | .   .   
  Trap                     .    | .   .   
  Miscellaneous            .    | .   .   

 Route 
-------
-11/Scrapyard
-10/Materials (discovered 1 exit: [*Mat])

 History 
---------
 Turn | Location      | Event
    4 | -11/Scrapyard | Discovered new exit (range 13)
   10 | -11/Scrapyard | Entered Materials
   53 | -10/Materials | Core integrity fell below 50%
   54 | -10/Materials | Discovered new exit (range 9)
   57 | -10/Materials | Core integrity fell below 20%
   58 | -10/Materials | Destroyed by G-34 Mercenary with Small Laser

 Last Messages 
---------------
  NETWORK_OVERLOAD
  COORDINATES_RETRIEVED
00040_ ALERT: Suspicious activity at Terminal M007. Dispatching
  Investigation squad.
00042_ O-16 Technician sends out distress signal.
00042_ O-16 Technician: "IFF HANDSHAKE FAILED. SECURING TERMINAL."
00043_ Connecting with Terminal...
>>Force(Sabotage)
SYSTEM_VULNERABLE[Fusion Modulator]
  NETWORK_OVERLOAD
  COORDINATES_RETRIEVED
00043_ ALERT: Suspicious activity at Terminal M008. Dispatching
  Investigation squad.
00046_ ALERT: Hostiles spotted, dispatching reinforcements to Terminal
  M002.
00047_ K-01 Serf collects debris. <x2>
00054_ EXIT=FOUND
00056_ Slammed into G-34 Mercenary.
00057_ K-01 Serf collects debris.
00058_ G-34 Mercenary destroyed.

 Map 
-----
+----------------------------------------------------+
|                                                    |
|                                                    |
|                                                    |
|                                                    |
|                                                    |
|                                                    |
|                                                    |
|                                                    |
|                                                    |
|                                                    |
|                                                    |
|                                                    |
|                                                    |
|                                                    |
| ?????????????????????????????????????????????????? |
| ?????????????????????????????????????????????????? |
| ?????????????????????????????????????????????????? |
| ?????????????????????????????????????????????????? |
| ?????????????????????????????????????????????????? |
| ????????????????????????????######???????????????? |
| ???????????????????????????##!!!!##??????????????? |
| ???????????????????????????#!    !#??????????????? |
| ??????????????????????######      #??????????????  |
| ??????????????????????#   #####   #???????#######/ |
| ??????????????????????# < #???#   #########T##     |
| ??????????????????????#  @#####                    |
| ??????????????????????#    g                       |
| ??????????????????????#   [%sg                   T |
| ??????????????????????# k  g  g                    |
| ??????????????????????#      ss                    |
| ??????????????????????#      g    ############     |
| ???????????????                   #??????????###   |
| ??????????????                    #????????????#   |
| ??????????????"    !!!       """  #????????????#   |
| ???????????????    !!!       """ g#????????????#   |
| ??????????????     !!!       """  #???????????##   |
| ???????????????          !!       ##########+##    |
| ???????????????          !!                        |
| ???????????????          !                         |
| ????????????????                                   |
| ?????????????????                 #############    |
| ??????????????????         ###+??##???????????##   |
| ????????????????????#######????????????????????#   |
| ???????????????????????????????????????????????#   |
| ???????????????????????????????????????????????#   |
| ???????????????????????????????????????????#####   |
| ???????????????????????????????????????????#       |
| ???????????????????????????????????????????#       |
| ???????????????????????????????????????????#       |
| ???????????????????????????????????????????#       |
+----------------------------------------------------+

 Best States
-------------
Heat Dissipation           25
Energy Generation          5
Energy Capacity            100
Matter Stores              105
Matter Capacity            300
Sight Range                16
Terrain Scan Density       10
Evasion (%)                50

 Item Schematics 
-----------------
None

 Robot Schematics 
------------------
None

 Fabricated
------------
Nothing

 Alien Tech Used 
-----------------
None

 Achievements 
--------------
None

 Challenges 
------------
None

 Game 
------
Seed              AngularRiotInjector
  Manual?         0
Play Time         00:01:51
  Cumulative      13.8 hours
  Start           2024.08.06 @ 11:43:06
  End             2024.08.06 @ 11:44:08
Sessions          1
Manual Loads      0
Difficulty        Rogue
Special Mode      None
Game No.          70
  Rogue           70
  Adventurer      0
  Explorer        0
Win Type          -
  Total           0
  Types           0/0/0/0/0/0/0/0/0
Lore%             16
Gallery%          19
Achievement%      31
Wizard Run        0

 Options 
---------
Layout            0
ASCII             0
Keyboard          0
Movement          Arrows
Keybinds          0
Fullscreen        2
Font              18/Terminus
Map View          76x50
Zoom Use          0%
Tactical HUD      1
Map Filters       NONE
Filters           NONE
Steam             1


RUN: 6587a99c-7b4c-4092-b54d-16f0da1f3548